Workbook

Sheet Sheet1
B2: ALTI AÇIKLIKLI SÜREKLİ KİRİŞ MOMENT KESME KUVVETİ HESABI (inş.müh. Gürcan BERBEROĞLU tel:0532 366 02 04 www.betoncelik.com )
X3: Dikkat sadece sarı hücrelere data girilecek.
Q4: 70 | S4: KN/m | AI4: 55 | AK4: KN/m | BA4: 85 | BC4: KN/m
H5: 30 | J5: KN/m | Z5: 45 | AB5: KN/m | AR5: 65 | AT5: KN/m | BL5: Bulunan değerler SAP2000 ile birebir tutmaktadır.
C11: A= | D11: =+H145 -> 31.65839864 | G11: KN | L11: B= | M11: =+Z147 -> 358.8099322 | P11: KN | U11: C= | V11: =+Z148 -> 413.259618 | Y11: KN | AD11: D= | AE11: =+Z149 -> 216.651182 | AH11: KN | AM11: E= | AN11: =+Z150 -> 240.3384183 | AQ11: KN | AV11: F= | AW11: =+Z151 -> 555.1438283 | AZ11: KN | BD11: G= | BE11: =+R146 -> 224.1386225 | BH11: KN
H12: 5 | J12: m | Q12: 7 | S12: m | Z12: 6 | AB12: m | AI12: 4 | AK12: m | AR12: 5.5 | AT12: m | BA12: 6.5 | BC12: m | BL12: Not : Sarı hücrelere data girmek mecburidir.
M14: =-AE166 -> -216.7080068 | V14: =-AR180 -> -248.429691 | AE14: =-AR191 -> -76.06199784 | AN14: =-AR202 -> -74.54547436 | AW14: =-AR213 -> -338.7239538 | BL14: Not: tüm açıklıklarda kesit ( E * I ) sabittir.
AZ15: moment diyagramı (KNm)
M16: - | N16: - | V16: - | W16: - | AE16: - | AF16: - | AN16: - | AO16: - | AW16: - | AX16: -
H19: + | R19: + | AA19: + | AJ19: + | AS19: + | BB19: +
H20: =IF(OR(Z165>H12,Z165<0),AE167,+AE165) -> 16.70423674 | Q20: =IF(OR(AM179>Q12,AM179<0),AR181,+AR179) -> 196.327837 | Z20: =IF(OR(AM190>Z12,AM190<0),AR192,+AR190) -> 49.42410054 | AI20: =IF(OR(AM201>AI12,AM201<0),AR203,+AR201) -> 34.69757063 | AR20: =IF(OR(AM212>AR12,AM212<0),AR214,+AR212) -> 56.89358462 | BA20: =IF(OR(AX223>BA12,AX223<0),BC224,+BC223) -> 295.5183653
D22: =+D11 -> 31.65839864 | M22: =+M11+M29 -> 240.4683308 | V22: =+V11+V29 -> 163.7279489 | AE22: =+AE11+AE29 -> 110.3791309 | AN22: =+AN11+AN29 -> 130.7175492 | AW22: =+AW11+AW29 -> 328.3613775
AZ23: kesme kuvveti diyagramı (KN)
E24: + | N24: + | W24: + | AF24: + | AO24: + | AX24: +
M27: - | V27: - | AE27: - | AN27: - | AW27: - | BF27: -
E28: x= | F28: =IF(OR(Z165>H12,Z165<0),Z167,+Z165) -> 1.055279955 | H28: m
M29: =+D22-H5*H12 -> -118.3416014 | V29: =+M22-Q4*Q12 -> -249.5316692 | AE29: =+V22-Z5*Z12 -> -106.2720511 | AN29: =+AE22-AI4*AI12 -> -109.6208691 | AW29: =+AN22-AR5*AR12 -> -226.7824508 | BE29: =+AW22-BA4*BA12 -> -224.1386225
N31: x= | O31: =IF(OR(AM179>Q12,AM179<0),AM181,+AM179) -> 3.435261869 | Q31: m | W31: x= | X31: =IF(OR(AM190>Z12,AM190<0),AM192,+AM190) -> 3.638398863 | Z31: m | AF31: x= | AG31: =IF(OR(AM201>AI12,AM201<0),AM203,+AM201) -> 2.006893289 | AI31: m | AO31: x= | AP31: =IF(OR(AM212>AR12,AM212<0),AM214,+AM212) -> 2.011039218 | AR31: m | AX31: x= | AY31: =IF(OR(AX223>BA12,AX223<0),AX224,+AX223) -> 3.863075029 | BA31: m
C34: 1.ci bölgede :
C35: v1''' = | E35: =+H5 -> 30 | G35: * | H35: x | I35: + | J35: C1
C36: v1'' = | E36: =+E35 -> 30 | G36: * | H36: x² | I36: / | J36: 2 | K36: + | L36: C1 | M36: * | N36: x | O36: + | P36: C2
C37: v1' = | E37: =+E36 -> 30 | G37: * | H37: x3 | I37: / | J37: 6 | K37: + | L37: C1 | M37: * | N37: x² | O37: / | P37: 2 | Q37: + | R37: C2 | S37: * | T37: x | U37: + | V37: C3
C38: v1 = | E38: =+E37 -> 30 | G38: * | H38: x4 | I38: / | J38: 24 | K38: + | L38: C1 | M38: * | N38: x3 | O38: / | P38: 6 | Q38: + | R38: C2 | S38: * | T38: x² | U38: / | V38: 2 | W38: + | X38: C3 | Y38: * | Z38: x | AA38: + | AB38: C4
C39: 2.ci bölgede :
C40: v2''' = | E40: =+Q4 -> 70 | G40: * | H40: z | I40: + | J40: D1
C41: v2'' = | E41: =+E40 -> 70 | G41: * | H41: z² | I41: / | J41: 2 | K41: + | L41: D1 | M41: * | N41: z | O41: + | P41: D2
C42: v2' = | E42: =+E41 -> 70 | G42: * | H42: z3 | I42: / | J42: 6 | K42: + | L42: D1 | M42: * | N42: z² | O42: / | P42: 2 | Q42: + | R42: D2 | S42: * | T42: z | U42: + | V42: D3
C43: v2 = | E43: =+E42 -> 70 | G43: * | H43: z4 | I43: / | J43: 24 | K43: + | L43: D1 | M43: * | N43: z3 | O43: / | P43: 6 | Q43: + | R43: D2 | S43: * | T43: z² | U43: / | V43: 2 | W43: + | X43: D3 | Y43: * | Z43: z | AA43: + | AB43: D4
C44: 3.cü bölgede :
C45: v3''' = | E45: =+Z5 -> 45 | G45: * | H45: w | I45: + | J45: E1
C46: v3'' = | E46: =+E45 -> 45 | G46: * | H46: w² | I46: / | J46: 2 | K46: + | L46: E1 | M46: * | N46: w | O46: + | P46: E2
C47: v3' = | E47: =+E46 -> 45 | G47: * | H47: w3 | I47: / | J47: 6 | K47: + | L47: E1 | M47: * | N47: w² | O47: / | P47: 2 | Q47: + | R47: E2 | S47: * | T47: w | U47: + | V47: E3
C48: v3 = | E48: =+E47 -> 45 | G48: * | H48: w4 | I48: / | J48: 24 | K48: + | L48: E1 | M48: * | N48: w3 | O48: / | P48: 6 | Q48: + | R48: E2 | S48: * | T48: w² | U48: / | V48: 2 | W48: + | X48: E3 | Y48: * | Z48: w | AA48: + | AB48: E4
C49: 4.cü bölgede :
C50: v4''' = | E50: =+AI4 -> 55 | G50: * | H50: k | I50: + | J50: F1
C51: v4'' = | E51: =+E50 -> 55 | G51: * | H51: k² | I51: / | J51: 2 | K51: + | L51: F1 | M51: * | N51: k | O51: + | P51: F2
C52: v4' = | E52: =+E51 -> 55 | G52: * | H52: k3 | I52: / | J52: 6 | K52: + | L52: F1 | M52: * | N52: k² | O52: / | P52: 2 | Q52: + | R52: F2 | S52: * | T52: k | U52: + | V52: F3
C53: v4 = | E53: =+E52 -> 55 | G53: * | H53: k4 | I53: / | J53: 24 | K53: + | L53: F1 | M53: * | N53: k3 | O53: / | P53: 6 | Q53: + | R53: F2 | S53: * | T53: k² | U53: / | V53: 2 | W53: + | X53: F3 | Y53: * | Z53: k | AA53: + | AB53: F4
C54: 5.ci bölgede :
C55: v5''' = | E55: =+AR5 -> 65 | G55: * | H55: m | I55: + | J55: G1
C56: v5'' = | E56: =+E55 -> 65 | G56: * | H56: m² | I56: / | J56: 2 | K56: + | L56: G1 | M56: * | N56: m | O56: + | P56: G2
C57: v5' = | E57: =+E56 -> 65 | G57: * | H57: m3 | I57: / | J57: 6 | K57: + | L57: G1 | M57: * | N57: m² | O57: / | P57: 2 | Q57: + | R57: G2 | S57: * | T57: m | U57: + | V57: G3
C58: v5 = | E58: =+E57 -> 65 | G58: * | H58: m4 | I58: / | J58: 24 | K58: + | L58: G1 | M58: * | N58: m3 | O58: / | P58: 6 | Q58: + | R58: G2 | S58: * | T58: m² | U58: / | V58: 2 | W58: + | X58: G3 | Y58: * | Z58: m | AA58: + | AB58: G4
C59: 6.cı bölgede :
C60: v6''' = | E60: =+BA4 -> 85 | G60: * | H60: n | I60: + | J60: H1
C61: v6'' = | E61: =+E60 -> 85 | G61: * | H61: n² | I61: / | J61: 2 | K61: + | L61: H1 | M61: * | N61: n | O61: + | P61: H2
C62: v6' = | E62: =+E61 -> 85 | G62: * | H62: n3 | I62: / | J62: 6 | K62: + | L62: H1 | M62: * | N62: n² | O62: / | P62: 2 | Q62: + | R62: H2 | S62: * | T62: n | U62: + | V62: H3
C63: v6 = | E63: =+E62 -> 85 | G63: * | H63: n4 | I63: / | J63: 24 | K63: + | L63: H1 | M63: * | N63: n3 | O63: / | P63: 6 | Q63: + | R63: H2 | S63: * | T63: n² | U63: / | V63: 2 | W63: + | X63: H3 | Y63: * | Z63: n | AA63: + | AB63: H4
C64: sınır ve uygunluk şartları :
C65: x = 0 ; v1 = 0 | I65: C4 = 0
C66: x = 0 ; v1'' = 0 | I66: C2 = 0
C67: n = L ; v6 = 0 | I67: =+E63 -> 85 | K67: * | L67: =+BA12 -> 6.5 | N67: 4 / | O67: 24 | P67: + | Q67: H1 | R67: * | S67: =+L67 -> 6.5 | U67: 3 / | V67: 6 | W67: + | X67: H2 | Y67: * | Z67: =+S67 -> 6.5 | AB67: ² / | AC67: 2 | AD67: + | AE67: H3 | AF67: * | AG67: =+Z67 -> 6.5 | AI67: = | AJ67: 0
C68: =+S67^3/V67 -> 45.77083333 | E68: * | F68: H1 | G68: + | H68: =Z67^2/AC67 -> 21.125 | J68: * | K68: H2 | L68: + | M68: =+AG67 -> 6.5 | O68: * | P68: H3 | Q68: + | R68: =I67*L67^4/O67 -> 6322.096354 | T68: = | U68: 0 | W68: (1.ci denklem)
C69: n = L ; v6'' = 0 | I69: =+E61 -> 85 | K69: * | L69: =+BA12 -> 6.5 | N69: ² / | O69: 2 | P69: + | Q69: H1 | R69: * | S69: =+L69 -> 6.5 | U69: + | V69: H2 | W69: = | X69: 0
C70: =S69 -> 6.5 | E70: * | F70: H1 | G70: + | H70: H2 | I70: + | J70: =I69*L69^2/O69 -> 1795.625 | L70: = | M70: 0 | O70: (2.ci denklem)
C71: x = L ; v1 = 0 | I71: =+E38 -> 30 | K71: * | L71: =+H12 -> 5 | N71: 4 / | O71: 24 | P71: + | Q71: C1 | R71: * | S71: =+L71 -> 5 | U71: 3 / | V71: 6 | W71: + | X71: C3 | Y71: * | Z71: =+S71 -> 5 | AB71: = | AC71: 0
C72: =S71^3/V71 -> 20.83333333 | E72: * | F72: C1 | G72: + | H72: =+Z71 -> 5 | J72: * | K72: C3 | L72: + | M72: =I71*L71^4/O71 -> 781.25 | O72: = | P72: 0 | R72: (3.cü denklem)
C73: z = L ; v2 = 0 | I73: =+E43 -> 70 | K73: * | L73: =+Q12 -> 7 | N73: 4 / | O73: 24 | P73: + | Q73: D1 | R73: * | S73: =+L73 -> 7 | U73: 3 / | V73: 6 | W73: + | X73: D2 | Y73: * | Z73: =+S73 -> 7 | AB73: ² / | AC73: 2 | AD73: + | AE73: D3 | AF73: * | AG73: =+S73 -> 7 | AI73: = | AJ73: 0
C74: =S73^3/V73 -> 57.16666667 | E74: * | F74: D1 | G74: + | H74: =Z73^2/AC73 -> 24.5 | J74: * | K74: D2 | L74: + | M74: =+AG73 -> 7 | O74: * | P74: D3 | Q74: + | R74: =I73*L73^4/O73 -> 7002.916667 | T74: = | U74: 0 | W74: (4.cü denklem)
C75: w = L ; v3 = 0 | I75: =+E48 -> 45 | K75: * | L75: =+Z12 -> 6 | N75: 4 / | O75: 24 | P75: + | Q75: E1 | R75: * | S75: =+L75 -> 6 | U75: 3 / | V75: 6 | W75: + | X75: E2 | Y75: * | Z75: =+S75 -> 6 | AB75: ² / | AC75: 2 | AD75: + | AE75: E3 | AF75: * | AG75: =+S75 -> 6 | AI75: = | AJ75: 0
C76: =S75^3/V75 -> 36 | E76: * | F76: E1 | G76: + | H76: =Z75^2/AC75 -> 18 | J76: * | K76: E2 | L76: + | M76: =+AG75 -> 6 | O76: * | P76: E3 | Q76: + | R76: =I75*L75^4/O75 -> 2430 | T76: = | U76: 0 | W76: (5.ci denklem)
C77: k = L ; v4 = 0 | I77: =+E53 -> 55 | K77: * | L77: =+AI12 -> 4 | N77: 4 / | O77: 24 | P77: + | Q77: F1 | R77: * | S77: =+L77 -> 4 | U77: 3 / | V77: 6 | W77: + | X77: F2 | Y77: * | Z77: =+S77 -> 4 | AB77: ² / | AC77: 2 | AD77: + | AE77: F3 | AF77: * | AG77: =+S77 -> 4 | AI77: = | AJ77: 0
C78: =S77^3/V77 -> 10.66666667 | E78: * | F78: F1 | G78: + | H78: =Z77^2/AC77 -> 8 | J78: * | K78: F2 | L78: + | M78: =+AG77 -> 4 | O78: * | P78: F3 | Q78: + | R78: =I77*L77^4/O77 -> 586.6666667 | T78: = | U78: 0 | W78: (6.ci denklem)
C79: m = L ; v5 = 0 | I79: =+E58 -> 65 | K79: * | L79: =+AR12 -> 5.5 | N79: 4 / | O79: 24 | P79: + | Q79: G1 | R79: * | S79: =+L79 -> 5.5 | U79: 3 / | V79: 6 | W79: + | X79: G2 | Y79: * | Z79: =+S79 -> 5.5 | AB79: ² / | AC79: 2 | AD79: + | AE79: G3 | AF79: * | AG79: =+S79 -> 5.5 | AI79: = | AJ79: 0
C80: =S79^3/V79 -> 27.72916667 | E80: * | F80: G1 | G80: + | H80: =Z79^2/AC79 -> 15.125 | J80: * | K80: G2 | L80: + | M80: =+AG79 -> 5.5 | O80: * | P80: G3 | Q80: + | R80: =I79*L79^4/O79 -> 2478.294271 | T80: = | U80: 0 | W80: (7.ci denklem)
C81: w = 0 ; v3 = 0 | I81: E4 = 0
C82: z = 0 ; v2 = 0 | I82: D4 = 0
C83: k = 0 ; v4 = 0 | I83: F4 = 0
C84: m = 0 ; v5 = 0 | I84: G4 = 0
C85: n = 0 ; v6 = 0 | I85: H4 = 0
C86: z = L ; v2' = | G86: =+E42 -> 70 | I86: * | J86: =+Q12 -> 7 | L86: 3 / | M86: 6 | N86: + | O86: D1 | P86: * | Q86: =+J86 -> 7 | S86: ² / | T86: 2 | U86: + | V86: D2 | W86: * | X86: =+Q86 -> 7 | Z86: + | AA86: D3
C87: w = 0 ; v3' = | G87: E3
C88: ( z = L ; v2' ) = ( w = 0 ; v3' ) | M88: =+G86 -> 70 | O88: * | P88: =+J86 -> 7 | R88: 3 / | S88: 6 | T88: + | U88: D1 | V88: * | W88: =+P88 -> 7 | Y88: ² / | Z88: 2 | AA88: + | AB88: D2 | AC88: * | AD88: =+W88 -> 7 | AF88: + | AG88: D3 | AH88: = | AI88: E3
C89: =+W88^2/Z88 -> 24.5 | E89: * | F89: D1 | G89: + | H89: =+AD88 -> 7 | J89: * | K89: D2 | L89: + | M89: D3 | N89: - | O89: E3 | P89: + | Q89: =M88*P88^3/S88 -> 4001.666667 | S89: = | T89: 0 | V89: (8.ci denklem)
C90: x = L ; v1' = | G90: =+E37 -> 30 | I90: * | J90: =+H12 -> 5 | L90: 3 / | M90: 6 | N90: + | O90: C1 | P90: * | Q90: =+J90 -> 5 | S90: ² / | T90: 2 | U90: + | V90: C3
C91: z = 0 ; v2' = | G91: D3
C92: ( z = L ; v1' ) = ( z = 0 ; v2' ) | M92: =+G90 -> 30 | O92: * | P92: =+J90 -> 5 | R92: 3 / | S92: 6 | T92: + | U92: C1 | V92: * | W92: =+P92 -> 5 | Y92: ² / | Z92: 2 | AA92: + | AB92: C3 | AC92: = | AD92: D3
C93: =+W92^2/Z92 -> 12.5 | E93: * | F93: C1 | G93: + | H93: C3 | I93: - | J93: D3 | K93: + | L93: =M92*P92^3/S92 -> 625 | N93: = | O93: 0 | Q93: (9.ci denklem)
C94: w = L ; v3' = | G94: =+E47 -> 45 | I94: * | J94: =+Z12 -> 6 | L94: 3 / | M94: 6 | N94: + | O94: E1 | P94: * | Q94: =+J94 -> 6 | S94: ² / | T94: 2 | U94: + | V94: E2 | W94: * | X94: =+Q94 -> 6 | Z94: + | AA94: E3
C95: k = 0 ; v4' = | G95: F3
C96: ( w = L ; v3' ) = ( k = 0 ; v4' ) | M96: =+G94 -> 45 | O96: * | P96: =+J94 -> 6 | R96: 3 / | S96: 6 | T96: + | U96: E1 | V96: * | W96: =+P96 -> 6 | Y96: ² / | Z96: 2 | AA96: + | AB96: E2 | AC96: * | AD96: =+W96 -> 6 | AF96: + | AG96: E3 | AH96: = | AI96: F3
C97: =+W96^2/Z96 -> 18 | E97: * | F97: E1 | G97: + | H97: =+AD96 -> 6 | J97: * | K97: E2 | L97: + | M97: E3 | N97: - | O97: F3 | P97: + | Q97: =M96*P96^3/S96 -> 1620 | S97: = | T97: 0 | V97: (10.ci denklem)
C98: k = L ; v4' = | G98: =+E52 -> 55 | I98: * | J98: =+AI12 -> 4 | L98: 3 / | M98: 6 | N98: + | O98: F1 | P98: * | Q98: =+J98 -> 4 | S98: ² / | T98: 2 | U98: + | V98: F2 | W98: * | X98: =+Q98 -> 4 | Z98: + | AA98: F3
C99: m = 0 ; v5' = | G99: G3
C100: ( k = L ; v4' ) = ( m = 0 ; v5' ) | M100: =+G98 -> 55 | O100: * | P100: =+J98 -> 4 | R100: 3 / | S100: 6 | T100: + | U100: F1 | V100: * | W100: =+P100 -> 4 | Y100: ² / | Z100: 2 | AA100: + | AB100: F2 | AC100: * | AD100: =+W100 -> 4 | AF100: + | AG100: F3 | AH100: = | AI100: G3
C101: =+W100^2/Z100 -> 8 | E101: * | F101: F1 | G101: + | H101: =+AD100 -> 4 | J101: * | K101: F2 | L101: + | M101: F3 | N101: - | O101: G3 | P101: + | Q101: =M100*P100^3/S100 -> 586.6666667 | S101: = | T101: 0 | V101: (11.ci denklem)
C102: m = L ; v5' = | G102: =+E57 -> 65 | I102: * | J102: =+AR12 -> 5.5 | L102: 3 / | M102: 6 | N102: + | O102: G1 | P102: * | Q102: =+J102 -> 5.5 | S102: ² / | T102: 2 | U102: + | V102: G2 | W102: * | X102: =+Q102 -> 5.5 | Z102: + | AA102: G3
C103: n = 0 ; v6' = | G103: H3
C104: ( m = L ; v5' ) = ( n = 0 ; v6' ) | M104: =+G102 -> 65 | O104: * | P104: =+J102 -> 5.5 | R104: 3 / | S104: 6 | T104: + | U104: G1 | V104: * | W104: =+P104 -> 5.5 | Y104: ² / | Z104: 2 | AA104: + | AB104: G2 | AC104: * | AD104: =+W104 -> 5.5 | AF104: + | AG104: G3 | AH104: = | AI104: H3
C105: =+W104^2/Z104 -> 15.125 | E105: * | F105: G1 | G105: + | H105: =+AD104 -> 5.5 | J105: * | K105: G2 | L105: + | M105: G3 | N105: - | O105: H3 | P105: + | Q105: =M104*P104^3/S104 -> 1802.395833 | S105: = | T105: 0 | V105: (12.ci denklem)
C106: x = L ; v1'' = | G106: =+E36 -> 30 | I106: * | J106: =+H12 -> 5 | L106: ² / | M106: 2 | N106: + | O106: C1 | P106: * | Q106: =+J106 -> 5
C107: z = 0 ; v2'' = | G107: D2
C108: ( x = L ; v1'' ) = ( z = 0 ; v2'' ) | M108: =+G106 -> 30 | O108: * | P108: =+J106 -> 5 | R108: ² / | S108: 2 | T108: + | U108: C1 | V108: * | W108: =+P108 -> 5 | Y108: = | Z108: D2
C109: =+W108 -> 5 | E109: * | F109: C1 | G109: - | H109: D2 | I109: + | J109: =+M108*P108^2/S108 -> 375 | L109: = | M109: 0 | O109: (13.ci denklem)
C110: z = L ; v2'' = | G110: =+E41 -> 70 | I110: * | J110: =+Q12 -> 7 | L110: ² / | M110: 2 | N110: + | O110: D1 | P110: * | Q110: =+J110 -> 7 | S110: + | T110: D2
C111: w = 0 ; v3'' = | G111: E2
C112: ( z = L ; v2'' ) = ( w = 0 ; v3'' ) | M112: =+G110 -> 70 | O112: * | P112: =+J110 -> 7 | R112: ² / | S112: 2 | T112: + | U112: D1 | V112: * | W112: =+P112 -> 7 | Y112: + | Z112: D2 | AA112: = | AB112: E2
C113: =+W112 -> 7 | E113: * | F113: D1 | G113: + | H113: D2 | I113: - | J113: E2 | K113: + | L113: =+M112*P112^2/S112 -> 1715 | N113: = | O113: 0 | Q113: (14.ci denklem)
C114: w = L ; v3'' = | G114: =+E46 -> 45 | I114: * | J114: =+Z12 -> 6 | L114: ² / | M114: 2 | N114: + | O114: E1 | P114: * | Q114: =+J114 -> 6 | S114: + | T114: E2
C115: k = 0 ; v4'' = | G115: F2
C116: ( z = L ; v2'' ) = ( w = 0 ; v3'' ) | M116: =+G114 -> 45 | O116: * | P116: =+J114 -> 6 | R116: ² / | S116: 2 | T116: + | U116: E1 | V116: * | W116: =+P116 -> 6 | Y116: + | Z116: E2 | AA116: = | AB116: F2
C117: =+W116 -> 6 | E117: * | F117: E1 | G117: + | H117: E2 | I117: - | J117: F2 | K117: + | L117: =+M116*P116^2/S116 -> 810 | N117: = | O117: 0 | Q117: (15.cü denklem)
C118: k = L ; v4'' = | G118: =+E51 -> 55 | I118: * | J118: =+AI12 -> 4 | L118: ² / | M118: 2 | N118: + | O118: F1 | P118: * | Q118: =+J118 -> 4 | S118: + | T118: F2
C119: m = 0 ; v5'' = | G119: G2
C120: ( k = L ; v4'' ) = ( m = 0 ; v5'' ) | M120: =+G118 -> 55 | O120: * | P120: =+J118 -> 4 | R120: ² / | S120: 2 | T120: + | U120: F1 | V120: * | W120: =+P120 -> 4 | Y120: + | Z120: F2 | AA120: = | AB120: G2
C121: =+W120 -> 4 | E121: * | F121: F1 | G121: + | H121: F2 | I121: - | J121: G2 | K121: + | L121: =+M120*P120^2/S120 -> 440 | N121: = | O121: 0 | Q121: (16.ci denklem)
C122: m = L ; v5'' = | G122: =+E56 -> 65 | I122: * | J122: =+AR12 -> 5.5 | L122: ² / | M122: 2 | N122: + | O122: G1 | P122: * | Q122: =+J122 -> 5.5 | S122: + | T122: G2
C123: n = 0 ; v6'' = | G123: H2
C124: ( k = L ; v4'' ) = ( m = 0 ; v5'' ) | M124: =+G122 -> 65 | O124: * | P124: =+J122 -> 5.5 | R124: ² / | S124: 2 | T124: + | U124: G1 | V124: * | W124: =+P124 -> 5.5 | Y124: + | Z124: G2 | AA124: = | AB124: H2
C125: =+W124 -> 5.5 | E125: * | F125: G1 | G125: + | H125: G2 | I125: - | J125: H2 | K125: + | L125: =+M124*P124^2/S124 -> 983.125 | N125: = | O125: 0 | Q125: (17.ci denklem)
C126: onyedi adet denklem onyedi adet bilinmeyen çözülürse :
C127: C1 = | E127: =+AT127 -> -31.65839864 | J127: 0 | K127: 0 | L127: 0 | M127: 0 | N127: 0 | O127: 0 | P127: 0 | Q127: 0 | R127: 0 | S127: 0 | T127: 0 | U127: 0 | V127: 0 | W127: 0 | X127: =+C68 -> 45.77083333 | Y127: =+H68 -> 21.125 | Z127: =+M68 -> 6.5 | AA127: =-R68 -> -6322.096354 | AC127: =MINVERSE(J127:Z143) -> 3.960197939e-05 | AD127: -0.0002788639382 | AE127: -0.01092494748 | AF127: 0.01006871142 | AG127: -0.003472961086 | AH127: 0.001526195032 | AI127: -0.0002510307289 | AJ127: -0.01585624253 | AK127: 0.0546247374 | AL127: 0.004981523987 | AM127: -0.001123256143 | AN127: 0.000257412866 | AO127: 0.108958771 | AP127: -0.02673096107 | AQ127: 0.005893194554 | AR127: -0.001823341134 | AS127: 0.0005577278764 | AT127: =MMULT(AC127:AS143,AA127:AA143) -> -31.65839864
C128: C3 = | E128: =+AT128 -> -24.34000567 | J128: 0 | K128: 0 | L128: 0 | M128: 0 | N128: 0 | O128: 0 | P128: 0 | Q128: 0 | R128: 0 | S128: 0 | T128: 0 | U128: 0 | V128: 0 | W128: 0 | X128: =+C70 -> 6.5 | Y128: 1 | Z128: 0 | AA128: =-J70 -> -1795.625 | AC128: -0.0001650082475 | AD128: 0.001161933076 | AE128: 0.2455206145 | AF128: -0.04195296425 | AG128: 0.01447067119 | AH128: -0.006359145969 | AI128: 0.00104596137 | AJ128: 0.0660676772 | AK128: -0.2276030725 | AL128: -0.02075634995 | AM128: 0.004680233928 | AN128: -0.001072553609 | AO128: -0.4539948791 | AP128: 0.1113790045 | AQ128: -0.02455497731 | AR128: 0.007597254727 | AS128: -0.002323866152 | AT128: -24.34000567
C129: D1 = | E129: -240.4683308 | J129: =+C72 -> 20.83333333 | K129: =+H72 -> 5 | L129: 0 | M129: 0 | N129: 0 | O129: 0 | P129: 0 | Q129: 0 | R129: 0 | S129: 0 | T129: 0 | U129: 0 | V129: 0 | W129: 0 | X129: 0 | Y129: 0 | Z129: 0 | AA129: =-M72 -> -781.25 | AC129: -0.0001252715675 | AD129: 0.0008821206209 | AE129: 0.01006871142 | AF129: -0.01435729414 | AG129: 0.01098589731 | AH129: -0.004827759797 | AI129: 0.0007940767954 | AJ129: 0.05015750188 | AK129: -0.0503435571 | AL129: -0.015757882 | AM129: 0.003553157186 | AN129: -0.0008142651885 | AO129: 0.08390592849 | AP129: 0.08455712175 | AQ129: -0.01864173788 | AR129: 0.005767711752 | AS129: -0.001764241242 | AT129: -240.4683308
C130: D2 = | E130: 216.7080068 | J130: 0 | K130: 0 | L130: =+C74 -> 57.16666667 | M130: =+H74 -> 24.5 | N130: =+M74 -> 7 | O130: 0 | P130: 0 | Q130: 0 | R130: 0 | S130: 0 | T130: 0 | U130: 0 | V130: 0 | W130: 0 | X130: 0 | Y130: 0 | Z130: 0 | AA130: =-R74 -> -7002.916667 | AC130: 0.000198009897 | AD130: -0.001394319691 | AE130: -0.0546247374 | AF130: 0.0503435571 | AG130: -0.01736480543 | AH130: 0.007630975162 | AI130: -0.001255153644 | AJ130: -0.07928121264 | AK130: 0.273123687 | AL130: 0.02490761994 | AM130: -0.005616280714 | AN130: 0.00128706433 | AO130: -0.455206145 | AP130: -0.1336548054 | AQ130: 0.02946597277 | AR130: -0.009116705672 | AS130: 0.002788639382 | AT130: 216.7080068
C131: D3 = | E131: 204.9300113 | J131: 0 | K131: 0 | L131: 0 | M131: 0 | N131: 0 | O131: =+C76 -> 36 | P131: =+H76 -> 18 | Q131: =+M76 -> 6 | R131: 0 | S131: 0 | T131: 0 | U131: 0 | V131: 0 | W131: 0 | X131: 0 | Y131: 0 | Z131: 0 | AA131: =-R76 -> -2430 | AC131: 0.0003300164949 | AD131: -0.002323866152 | AE131: 0.108958771 | AF131: 0.08390592849 | AG131: -0.02894134238 | AH131: 0.01271829194 | AI131: -0.002091922741 | AJ131: -0.1321353544 | AK131: -0.544793855 | AL131: 0.04151269989 | AM131: -0.009360467856 | AN131: 0.002145107217 | AO131: 0.9079897583 | AP131: -0.2227580089 | AQ131: 0.04910995462 | AR131: -0.01519450945 | AS131: 0.004647732304 | AT131: 204.9300113
C132: E1 = | E132: -163.7279489 | J132: 0 | K132: 0 | L132: 0 | M132: 0 | N132: 0 | O132: 0 | P132: 0 | Q132: 0 | R132: =+C78 -> 10.66666667 | S132: =+H78 -> 8 | T132: =+M78 -> 4 | U132: 0 | V132: 0 | W132: 0 | X132: 0 | Y132: 0 | Z132: 0 | AA132: =-R78 -> -586.6666667 | AC132: 0.0005649568092 | AD132: -0.003978237531 | AE132: -0.003472961086 | AF132: 0.01098589731 | AG132: -0.02176704406 | AH132: 0.02177250453 | AI132: -0.003581172501 | AJ132: -0.05953647576 | AK132: 0.01736480543 | AL132: 0.07106578863 | AM132: -0.0160242295 | AN132: 0.00367221926 | AO132: -0.02894134238 | AP132: 0.1186595038 | AQ132: 0.08407156517 | AR132: -0.02601155309 | AS132: 0.007956475063 | AT132: -163.7279489
C133: E2 = | E133: 248.429691 | J133: 0 | K133: 0 | L133: 0 | M133: 0 | N133: 0 | O133: 0 | P133: 0 | Q133: 0 | R133: 0 | S133: 0 | T133: 0 | U133: =+C80 -> 27.72916667 | V133: =+H80 -> 15.125 | W133: =+M80 -> 5.5 | X133: 0 | Y133: 0 | Z133: 0 | AA133: =-R80 -> -2478.294271 | AC133: -0.0006788910753 | AD133: 0.004780524655 | AE133: 0.01585624253 | AF133: -0.05015750188 | AG133: 0.05953647576 | AH133: -0.02616334341 | AI133: 0.004303383924 | AJ133: 0.2718213005 | AK133: -0.07928121264 | AL133: -0.08539755407 | AM133: 0.01925581959 | AN133: -0.004412791989 | AO133: 0.1321353544 | AP133: -0.5417549531 | AQ133: -0.1010261924 | AR133: 0.03125727659 | AS133: -0.00956104931 | AT133: 248.429691
C134: E3 = | E134: -167.9213798 | J134: 0 | K134: 0 | L134: =+C89 -> 24.5 | M134: =+H89 -> 7 | N134: 1 | O134: 0 | P134: 0 | Q134: -1 | R134: 0 | S134: 0 | T134: 0 | U134: 0 | V134: 0 | W134: 0 | X134: 0 | Y134: 0 | Z134: 0 | AA134: =-Q89 -> -4001.666667 | AC134: -0.001353067629 | AD134: 0.009527851222 | AE134: -0.02673096107 | AF134: 0.08455712175 | AG134: 0.1186595038 | AH134: -0.05214499694 | AI134: 0.008576883236 | AJ134: -0.4582450469 | AK134: 0.1336548054 | AL134: -0.1702020696 | AM134: 0.03837791821 | AN134: -0.00879493959 | AO134: -0.2227580089 | AP134: 0.9133078366 | AQ134: -0.2013508139 | AR134: 0.06229748876 | AS134: -0.01905570244 | AT134: -167.9213798
C135: F1 = | E135: -110.3791309 | J135: =+C93 -> 12.5 | K135: 1 | L135: 0 | M135: 0 | N135: -1 | O135: 0 | P135: 0 | Q135: 0 | R135: 0 | S135: 0 | T135: 0 | U135: 0 | V135: 0 | W135: 0 | X135: 0 | Y135: 0 | Z135: 0 | AA135: =-L93 -> -625 | AC135: -0.003811690516 | AD135: 0.02684065405 | AE135: 0.001526195032 | AF135: -0.004827759797 | AG135: 0.02177250453 | AH135: -0.05314627188 | AI135: 0.02416170765 | AJ135: 0.02616334341 | AK135: -0.007630975162 | AL135: -0.1044716838 | AM135: 0.1081134037 | AN135: -0.02477598836 | AO135: 0.01271829194 | AP135: -0.05214499694 | AQ135: 0.1827800241 | AR135: 0.1754965842 | AS135: -0.05368130811 | AT135: -110.3791309
C136: F2 = | E136: 76.06199784 | J136: 0 | K136: 0 | L136: 0 | M136: 0 | N136: 0 | O136: =+C97 -> 18 | P136: =+H97 -> 6 | Q136: 1 | R136: 0 | S136: 0 | T136: -1 | U136: 0 | V136: 0 | W136: 0 | X136: 0 | Y136: 0 | Z136: 0 | AA136: =-Q97 -> -1620 | AC136: 0.00271084978 | AD136: -0.01908890053 | AE136: -0.004981523987 | AF136: 0.015757882 | AG136: -0.07106578863 | AH136: 0.1044716838 | AI136: -0.01718365108 | AJ136: -0.08539755407 | AK136: 0.02490761994 | AL136: 0.3409971777 | AM136: -0.07688955739 | AN136: 0.01762052357 | AO136: -0.04151269989 | AP136: 0.1702020696 | AQ136: -0.5965968013 | AR136: -0.1248120419 | AS136: 0.03817780107 | AT136: 76.06199784
C137: F3 = | E137: -4.446313352 | J137: 0 | K137: 0 | L137: 0 | M137: 0 | N137: 0 | O137: 0 | P137: 0 | Q137: 0 | R137: =+C101 -> 8 | S137: =+H101 -> 4 | T137: 1 | U137: 0 | V137: 0 | W137: -1 | X137: 0 | Y137: 0 | Z137: 0 | AA137: =-Q101 -> -586.6666667 | AC137: 0.004742808484 | AD137: -0.03339727641 | AE137: 0.005893194554 | AF137: -0.01864173788 | AG137: 0.08407156517 | AH137: 0.1827800241 | AI137: -0.03006391824 | AJ137: 0.1010261924 | AK137: -0.02946597277 | AL137: -0.4034031987 | AM137: -0.1345232952 | AN137: 0.03082825515 | AO137: 0.04910995462 | AP137: -0.2013508139 | AQ137: 0.705780205 | AR137: -0.2183668073 | AS137: 0.06679455282 | AT137: -4.446313352
C138: G1 = | E138: -130.7175492 | J138: 0 | K138: 0 | L138: 0 | M138: 0 | N138: 0 | O138: 0 | P138: 0 | Q138: 0 | R138: 0 | S138: 0 | T138: 0 | U138: =+C105 -> 15.125 | V138: =+H105 -> 5.5 | W138: 1 | X138: 0 | Y138: 0 | Z138: -1 | AA138: =-Q105 -> -1802.395833 | AC138: 0.009794593451 | AD138: -0.06897026222 | AE138: -0.0002510307289 | AF138: 0.0007940767954 | AG138: -0.003581172501 | AH138: 0.02416170765 | AI138: -0.02602327945 | AJ138: -0.004303383924 | AK138: 0.001255153644 | AL138: 0.01718365108 | AM138: -0.07946317953 | AN138: 0.06366485743 | AO138: -0.002091922741 | AP138: 0.008576883236 | AQ138: -0.03006391824 | AR138: 0.09449513865 | AS138: 0.1379405244 | AT138: -130.7175492
C139: G2 = | E139: 74.54547436 | J139: =+C109 -> 5 | K139: 0 | L139: 0 | M139: -1 | N139: 0 | O139: 0 | P139: 0 | Q139: 0 | R139: 0 | S139: 0 | T139: 0 | U139: 0 | V139: 0 | W139: 0 | X139: 0 | Y139: 0 | Z139: 0 | AA139: =-J109 -> -375 | AC139: -0.01253591229 | AD139: 0.08827371568 | AE139: 0.001123256143 | AF139: -0.003553157186 | AG139: 0.0160242295 | AH139: -0.1081134037 | AI139: 0.07946317953 | AJ139: 0.01925581959 | AK139: -0.005616280714 | AL139: -0.07688955739 | AM139: 0.3555640576 | AN139: -0.08148342986 | AO139: 0.009360467856 | AP139: -0.03837791821 | AQ139: 0.1345232952 | AR139: -0.4228257052 | AS139: -0.1765474314 | AT139: 74.54547436
C140: G3 = | E140: 3.435297701 | J140: 0 | K140: 0 | L140: =+C113 -> 7 | M140: 1 | N140: 0 | O140: 0 | P140: -1 | Q140: 0 | R140: 0 | S140: 0 | T140: 0 | U140: 0 | V140: 0 | W140: 0 | X140: 0 | Y140: 0 | Z140: 0 | AA140: =-L113 -> -1715 | AC140: -0.01490731653 | AD140: 0.1049723539 | AE140: -0.001823341134 | AF140: 0.005767711752 | AG140: -0.02601155309 | AH140: 0.1754965842 | AI140: 0.09449513865 | AJ140: -0.03125727659 | AK140: 0.009116705672 | AL140: 0.1248120419 | AM140: -0.5771742948 | AN140: -0.09689755743 | AO140: -0.01519450945 | AP140: 0.06229748876 | AQ140: -0.2183668073 | AR140: 0.6863576985 | AS140: -0.2099447078 | AT140: 3.435297701
C141: H1 = | E141: -328.3613775 | J141: 0 | K141: 0 | L141: 0 | M141: 0 | N141: 0 | O141: =+C117 -> 6 | P141: 1 | Q141: 0 | R141: 0 | S141: -1 | T141: 0 | U141: 0 | V141: 0 | W141: 0 | X141: 0 | Y141: 0 | Z141: 0 | AA141: =-L117 -> -810 | AC141: -0.00635913103 | AD141: 0.1986250348 | AE141: 3.960197939e-05 | AF141: -0.0001252715675 | AG141: 0.0005649568092 | AH141: -0.003811690516 | AI141: 0.009794593451 | AJ141: 0.0006788910753 | AK141: -0.000198009897 | AL141: -0.00271084978 | AM141: 0.01253591229 | AN141: -0.04133435169 | AO141: 0.0003300164949 | AP141: -0.001353067629 | AQ141: 0.004742808484 | AR141: -0.01490731653 | AS141: 0.06428839184 | AT141: -328.3613775
C142: H2 = | E142: 338.7239538 | J142: 0 | K142: 0 | L142: 0 | M142: 0 | N142: 0 | O142: 0 | P142: 0 | Q142: 0 | R142: =+C121 -> 4 | S142: 1 | T142: 0 | U142: 0 | V142: -1 | W142: 0 | X142: 0 | Y142: 0 | Z142: 0 | AA142: =-L121 -> -440 | AC142: 0.04133435169 | AD142: -0.2910627265 | AE142: -0.000257412866 | AF142: 0.0008142651885 | AG142: -0.00367221926 | AH142: 0.02477598836 | AI142: -0.06366485743 | AJ142: -0.004412791989 | AK142: 0.00128706433 | AL142: 0.01762052357 | AM142: -0.08148342986 | AN142: 0.268673286 | AO142: -0.002145107217 | AP142: 0.00879493959 | AQ142: -0.03082825515 | AR142: 0.09689755743 | AS142: -0.417874547 | AT142: 338.7239538
C143: H3 = | E143: 238.7283084 | J143: 0 | K143: 0 | L143: 0 | M143: 0 | N143: 0 | O143: 0 | P143: 0 | Q143: 0 | R143: 0 | S143: 0 | T143: 0 | U143: =+C125 -> 5.5 | V143: 1 | W143: 0 | X143: 0 | Y143: -1 | Z143: 0 | AA143: =-L125 -> -983.125 | AC143: 0.06428839184 | AD143: -0.4526974259 | AE143: 0.0005577278764 | AF143: -0.001764241242 | AG143: 0.007956475063 | AH143: -0.05368130811 | AI143: 0.1379405244 | AJ143: 0.00956104931 | AK143: -0.002788639382 | AL143: -0.03817780107 | AM143: 0.1765474314 | AN143: -0.582125453 | AO143: 0.004647732304 | AP143: -0.01905570244 | AQ143: 0.06679455282 | AR143: -0.2099447078 | AS143: 0.9053948518 | AT143: 238.7283084
C144: MESNET TEPKİLERİ
C145: (x = 0 ; v1''') = | H145: =-E127 -> 31.65839864 | K145: KN | M145: (A mesnet tepkisi)
C146: (n = L ; v6''') = | H146: =+E60 -> 85 | J146: * | K146: =+BA12 -> 6.5 | M146: + | N146: =E141 -> -328.3613775 | Q146: = | R146: =+H146*K146+N146 -> 224.1386225 | U146: KN | W146: (G mesnet tepkisi)
C147: (x = L ; v1''') + (z = 0 ; v2''') = | L147: =E35 -> 30 | N147: * | O147: =+H12 -> 5 | Q147: + | R147: =+E127 -> -31.65839864 | U147: - | V147: =+E129 -> -240.4683308 | Y147: = | Z147: =L147*O147+R147-V147 -> 358.8099322 | AC147: KN | AE147: (B mesnet tepkisi)
C148: (z = L ; v2''') + (w = 0 ; v3''') = | L148: =E40 -> 70 | N148: * | O148: =+Q12 -> 7 | Q148: + | R148: =+E129 -> -240.4683308 | U148: - | V148: =+E132 -> -163.7279489 | Y148: = | Z148: =L148*O148+R148-V148 -> 413.259618 | AC148: KN | AE148: (C mesnet tepkisi)
C149: (w = L ; v3''') + (k = 0 ; v4''') = | L149: =E45 -> 45 | N149: * | O149: =+Z12 -> 6 | Q149: + | R149: =+E132 -> -163.7279489 | U149: - | V149: =+E135 -> -110.3791309 | Y149: = | Z149: =L149*O149+R149-V149 -> 216.651182 | AC149: KN | AE149: (D mesnet tepkisi)
C150: (k = L ; v4''') + (m = 0 ; v5''') = | L150: =E50 -> 55 | N150: * | O150: =+AI12 -> 4 | Q150: + | R150: =+E135 -> -110.3791309 | U150: - | V150: =+E138 -> -130.7175492 | Y150: = | Z150: =L150*O150+R150-V150 -> 240.3384183 | AC150: KN | AE150: (E mesnet tepkisi)
C151: (m = L ; v5''') + (n = 0 ; v6''') = | L151: =E55 -> 65 | N151: * | O151: =+AR12 -> 5.5 | Q151: + | R151: =+E138 -> -130.7175492 | U151: - | V151: =+E141 -> -328.3613775 | Y151: = | Z151: =L151*O151+R151-V151 -> 555.1438283 | AC151: KN | AE151: (F mesnet tepkisi)
C152: 1.ci bölgede x = | H152: 3 | J152: m. 'de ki moment miktarı | V152: =IF(H152<=H12,"","azalt.") -> 
C153: v1'' = | E153: =+E36 -> 30 | G153: * | H153: =+H152 -> 3 | J153: ² / | K153: 2 | L153: + | M153: =+E127 -> -31.65839864 | P153: * | Q153: =+H153 -> 3 | S153: = | T153: =E153*H153^2/K153+M153*Q153 -> 40.02480408 | W153: KNm
C154: 2. bölgede z = | H154: 3 | J154: m. 'de ki moment miktarı | V154: =IF(H154<=Q12,"","azalt.") -> 
C155: v2'' = | E155: =+E41 -> 70 | G155: * | H155: =+H154 -> 3 | J155: ² / | K155: 2 | L155: + | M155: =+E129 -> -240.4683308 | P155: * | Q155: =+H155 -> 3 | S155: + | T155: =+E130 -> 216.7080068 | W155: = | X155: =E155*H155^2/K155+M155*Q155+T155 -> -189.6969857 | AA155: KNm
C156: 3.cü bölgede w = | I156: 3 | K156: m. 'de ki moment miktarı | V156: =IF(I156<=Z12,"","azalt.") -> 
C157: v3'' = | E157: =+E46 -> 45 | G157: * | H157: =+I156 -> 3 | J157: ² / | K157: 2 | L157: + | M157: =+E132 -> -163.7279489 | P157: * | Q157: =+H157 -> 3 | S157: + | T157: =+E133 -> 248.429691 | W157: = | X157: =E157*H157^2/K157+M157*Q157+T157 -> -40.25415559 | AA157: KNm
C158: 4.cü bölgede k = | I158: 3 | K158: m. 'de ki moment miktarı | V158: =IF(I158<=AI12,"","azalt.") -> 
C159: v4'' = | E159: =+E51 -> 55 | G159: * | H159: =+I158 -> 3 | J159: ² / | K159: 2 | L159: + | M159: =+E135 -> -110.3791309 | P159: * | Q159: =+H159 -> 3 | S159: + | T159: =+E136 -> 76.06199784 | W159: = | X159: =E159*H159^2/K159+M159*Q159+T159 -> -7.575394773 | AA159: KNm
C160: 5.ci bölgede m = | I160: 3 | K160: m. 'de ki moment miktarı | V160: =IF(I160<=AR12,"","azalt.") -> 
C161: v5'' = | E161: =+E56 -> 65 | G161: * | H161: =+I160 -> 3 | J161: ² / | K161: 2 | L161: + | M161: =+E138 -> -130.7175492 | P161: * | Q161: =+H161 -> 3 | S161: + | T161: =+E139 -> 74.54547436 | W161: = | X161: =E161*H161^2/K161+M161*Q161+T161 -> -25.10717322 | AA161: KNm
C162: 6.cı bölgede m = | I162: 3 | K162: m. 'de ki moment miktarı | V162: =IF(I162<=BA12,"","azalt.") -> 
C163: v6'' = | E163: =+E61 -> 85 | G163: * | H163: =+I162 -> 3 | J163: ² / | K163: 2 | L163: + | M163: =+E141 -> -328.3613775 | P163: * | Q163: =+H163 -> 3 | S163: + | T163: =+E142 -> 338.7239538 | W163: = | X163: =E163*H163^2/K163+M163*Q163+T163 -> -263.8601787 | AA163: KNm
C164: EĞİLME HESABINDA KULLANILMAK ÜZERE Cb KATSAYISI İÇİN ( Mmax ; MA ; MB ; MC ) HESABI (Çelik yönetmelik madde 9.1.(c) uyarınca)
C165: 1.ci bölgede | Y165: x= | Z165: =+D11/H5 -> 1.055279955 | AC165: max = | AE165: =-(E167*Z165^2/K167+M167*Z165) -> 16.70423674 | AG165: =INDEX(Z165:Z166,MATCH(MAX(AE165,AE166),AE165:AE166,0),0) -> 5
C166: x= | D166: =+AG165 -> 5 | G166: m. ' deki max moment miktarı | Y166: x= | Z166: =+H12 -> 5 | AC166: max = | AE166: =ABS(E167*Z166^2/K167+M167*Z166) -> 216.7080068
C167: Max = | E167: =+E153 -> 30 | G167: * | H167: =+D166 -> 5 | J167: ² / | K167: 2 | L167: + | M167: =+M153 -> -31.65839864 | P167: * | Q167: =+H167 -> 5 | S167: = | T167: =E167*H167^2/K167+M167*Q167 -> 216.7080068 | W167: KNm | Y167: x= | Z167: =+H12/2 -> 2.5 | AC167: max = | AE167: =-(E167*Z167^2/K167+M167*Z167) -> -14.6040034
C168: L / 2 = | E168: =+H12/2 -> 2.5 | H168: m. ' deki moment miktarı
C169: MB = | E169: =+E167 -> 30 | G169: * | H169: =+E168 -> 2.5 | J169: ² / | K169: 2 | L169: + | M169: =+M167 -> -31.65839864 | P169: * | Q169: =+H169 -> 2.5 | S169: = | T169: =E169*H169^2/K169+M169*Q169 -> 14.6040034 | W169: KNm
C170: L / 4 = | E170: =+H12/4 -> 1.25 | H170: m. ' deki moment miktarı
C171: MA = | E171: =+E169 -> 30 | G171: * | H171: =+E170 -> 1.25 | J171: ² / | K171: 2 | L171: + | M171: =+M169 -> -31.65839864 | P171: * | Q171: =+H171 -> 1.25 | S171: = | T171: =E171*H171^2/K171+M171*Q171 -> -16.1354983 | W171: KNm
C172: 3 * L / 4 = | F172: =3*H12/4 -> 3.75 | I172: m. ' deki moment miktarı
C173: MC = | E173: =+E171 -> 30 | G173: * | H173: =+F172 -> 3.75 | J173: ² / | K173: 2 | L173: + | M173: =+M171 -> -31.65839864 | P173: * | Q173: =+H173 -> 3.75 | S173: = | T173: =E173*H173^2/K173+M173*Q173 -> 92.2185051 | W173: KNm
C174: Cb = 12,5 * Mmax / ( 2,5 * Mmax + 3 * MA + 4 * MB + 3 * MC )
C175: Cb = | E175: 12.5 | G175: * | H175: =ABS(T167) -> 216.7080068 | K175: /( | L175: 2.5 | N175: * | O175: =+H175 -> 216.7080068 | R175: + | S175: 3 | T175: * | U175: =ABS(T171) -> 16.1354983 | X175: + | Y175: 4 | Z175: * | AA175: =ABS(T169) -> 14.6040034 | AD175: + | AE175: 3 | AF175: * | AG175: =ABS(T173) -> 92.2185051 | AJ175: )= | AK175: =E175*H175/(L175*O175+S175*U175+Y175*AA175+AE175*AG175) -> 2.927701509
C176: 2.ci bölgede
C177: z= | D177: =+AT178 -> 7 | G177: m. ' deki max moment miktarı
C178: Max = | E178: =+E155 -> 70 | G178: * | H178: =+D177 -> 7 | J178: ² / | K178: 2 | L178: + | M178: =+M155 -> -240.4683308 | P178: * | Q178: =+H178 -> 7 | S178: + | T178: =+T155 -> 216.7080068 | W178: = | X178: =E178*H178^2/K178+M178*Q178+T178 -> 248.429691 | AA178: KNm | AM178: 0 | AP178: max = | AR178: =+AE166 -> 216.7080068 | AT178: =INDEX(AM178:AM180,MATCH(MAX(AR178,AR179,AR180),AR178:AR180,0),0) -> 7
C179: L / 2 = | E179: =+Q12/2 -> 3.5 | H179: m. ' deki moment miktarı | AM179: =(D11+M11-H5*H12)/Q4 -> 3.435261869 | AP179: max = | AR179: =-(E178*AM179^2/K178+M178*AM179+T178) -> 196.327837
C180: MB = | E180: =+E178 -> 70 | G180: * | H180: =+E179 -> 3.5 | J180: ² / | K180: 2 | L180: + | M180: =+M178 -> -240.4683308 | P180: * | Q180: =+H180 -> 3.5 | S180: + | T180: =+T178 -> 216.7080068 | W180: = | X180: =E180*H180^2/K180+M180*Q180+T180 -> -196.1811511 | AA180: KNm | AM180: =+Q12 -> 7 | AP180: max = | AR180: =ABS(E178*AM180^2/K178+M178*AM180+T178) -> 248.429691
C181: L / 4 = | E181: =+Q12/4 -> 1.75 | H181: m. ' deki moment miktarı | AM181: =+Q12/2 -> 3.5 | AP181: max = | AR181: =-(E178*AM181^2/K178+M178*AM181+T178) -> 196.1811511
C182: MA = | E182: =+E180 -> 70 | G182: * | H182: =+E181 -> 1.75 | J182: ² / | K182: 2 | L182: + | M182: =+M180 -> -240.4683308 | P182: * | Q182: =+H182 -> 1.75 | S182: + | T182: =+T180 -> 216.7080068 | W182: = | X182: =E182*H182^2/K182+M182*Q182+T182 -> -96.92407216 | AA182: KNm
C183: 3 * L / 4 = | F183: =3*Q12/4 -> 5.25 | I183: m. ' deki moment miktarı
C184: MC = | E184: =+E182 -> 70 | G184: * | H184: =+F183 -> 5.25 | J184: ² / | K184: 2 | L184: + | M184: =+M182 -> -240.4683308 | P184: * | Q184: =+H184 -> 5.25 | S184: + | T184: =+T182 -> 216.7080068 | W184: = | X184: =E184*H184^2/K184+M184*Q184+T184 -> -81.06323007 | AA184: KNm
C185: Cb = 12,5 * Mmax / ( 2,5 * Mmax + 3 * MA + 4 * MB + 3 * MC )
C186: Cb = | E186: 12.5 | G186: * | H186: =ABS(X178) -> 248.429691 | K186: /( | L186: 2.5 | N186: * | O186: =+H186 -> 248.429691 | R186: + | S186: 3 | T186: * | U186: =ABS(X182) -> 96.92407216 | X186: + | Y186: 4 | Z186: * | AA186: =ABS(X180) -> 196.1811511 | AD186: + | AE186: 3 | AF186: * | AG186: =ABS(X184) -> 81.06323007 | AJ186: )= | AK186: =E186*H186/(L186*O186+S186*U186+Y186*AA186+AE186*AG186) -> 1.600904212
C187: 3.cü bölgede
C188: w= | E188: =+AT189 -> 0 | H188: m. ' deki max moment miktarı
C189: Max = | E189: =+E157 -> 45 | G189: * | H189: =+E188 -> 0 | J189: ² / | K189: 2 | L189: + | M189: =+M157 -> -163.7279489 | P189: * | Q189: =+H189 -> 0 | S189: + | T189: =+T157 -> 248.429691 | W189: = | X189: =E189*H189^2/K189+M189*Q189+T189 -> 248.429691 | AA189: KNm | AM189: 0 | AP189: max = | AR189: =+AR180 -> 248.429691 | AT189: =INDEX(AM189:AM191,MATCH(MAX(AR189,AR190,AR191),AR189:AR191,0),0) -> 0
C190: L / 2 = | E190: =+Z12/2 -> 3 | H190: m. ' deki moment miktarı | AM190: =(D11+M11+V11-H5*H12-Q4*Q12)/Z5 -> 3.638398863 | AP190: max = | AR190: =-(E189*AM190^2/K189+M189*AM190+T189) -> 49.42410054
C191: MB = | E191: =+E189 -> 45 | G191: * | H191: =+E190 -> 3 | J191: ² / | K191: 2 | L191: + | M191: =+M189 -> -163.7279489 | P191: * | Q191: =+H191 -> 3 | S191: + | T191: =+T189 -> 248.429691 | W191: = | X191: =E191*H191^2/K191+M191*Q191+T191 -> -40.25415559 | AA191: KNm | AM191: =+Z12 -> 6 | AP191: max = | AR191: =ABS(E189*AM191^2/K189+M189*AM191+T189) -> 76.06199784
C192: L / 4 = | E192: =+Z12/4 -> 1.5 | H192: m. ' deki moment miktarı | AM192: =+Z12/2 -> 3 | AP192: max = | AR192: =-(E189*AM192^2/K189+M189*AM192+T189) -> 40.25415559
C193: MA = | E193: =+E191 -> 45 | G193: * | H193: =+E192 -> 1.5 | J193: ² / | K193: 2 | L193: + | M193: =+M191 -> -163.7279489 | P193: * | Q193: =+H193 -> 1.5 | S193: + | T193: =+T191 -> 248.429691 | W193: = | X193: =E193*H193^2/K193+M193*Q193+T193 -> 53.46276769 | AA193: KNm
C194: 3 * L / 4 = | F194: =3*Z12/4 -> 4.5 | I194: m. ' deki moment miktarı
C195: MC = | E195: =+E193 -> 45 | G195: * | H195: =+F194 -> 4.5 | J195: ² / | K195: 2 | L195: + | M195: =+M193 -> -163.7279489 | P195: * | Q195: =+H195 -> 4.5 | S195: + | T195: =+T193 -> 248.429691 | W195: = | X195: =E195*H195^2/K195+M195*Q195+T195 -> -32.72107888 | AA195: KNm
C196: Cb = 12,5 * Mmax / ( 2,5 * Mmax + 3 * MA + 4 * MB + 3 * MC )
C197: Cb = | E197: 12.5 | G197: * | H197: =ABS(X189) -> 248.429691 | K197: /( | L197: 2.5 | N197: * | O197: =+H197 -> 248.429691 | R197: + | S197: 3 | T197: * | U197: =ABS(X193) -> 53.46276769 | X197: + | Y197: 4 | Z197: * | AA197: =ABS(X191) -> 40.25415559 | AD197: + | AE197: 3 | AF197: * | AG197: =ABS(X195) -> 32.72107888 | AJ197: )= | AK197: =E197*H197/(L197*O197+S197*U197+Y197*AA197+AE197*AG197) -> 2.984090566
C198: 4.cü bölgede
C199: k= | E199: =+AT200 -> 0 | H199: m. ' deki max moment miktarı
C200: Max = | E200: =+E159 -> 55 | G200: * | H200: =+E199 -> 0 | J200: ² / | K200: 2 | L200: + | M200: =+M159 -> -110.3791309 | P200: * | Q200: =+H200 -> 0 | S200: + | T200: =+T159 -> 76.06199784 | W200: = | X200: =E200*H200^2/K200+M200*Q200+T200 -> 76.06199784 | AA200: KNm | AM200: 0 | AP200: max = | AR200: =+AR191 -> 76.06199784 | AT200: =INDEX(AM200:AM202,MATCH(MAX(AR200,AR201,AR202),AR200:AR202,0),0) -> 0
C201: L / 2 = | E201: =+AI12/2 -> 2 | H201: m. ' deki moment miktarı | AM201: =(D11+M11+V11+AE11-H5*H12-Q4*Q12-Z5*Z12)/AI4 -> 2.006893289 | AP201: max = | AR201: =-(E200*AM201^2/K200+M200*AM201+T200) -> 34.69757063
C202: MB = | E202: =+E200 -> 55 | G202: * | H202: =+E201 -> 2 | J202: ² / | K202: 2 | L202: + | M202: =+M200 -> -110.3791309 | P202: * | Q202: =+H202 -> 2 | S202: + | T202: =+T200 -> 76.06199784 | W202: = | X202: =E202*H202^2/K202+M202*Q202+T202 -> -34.6962639 | AA202: KNm | AM202: =+AI12 -> 4 | AP202: max = | AR202: =ABS(E200*AM202^2/K200+M200*AM202+T200) -> 74.54547436
C203: L / 4 = | E203: =+AI12/4 -> 1 | H203: m. ' deki moment miktarı | AM203: =+AI12/2 -> 2 | AP203: max = | AR203: =-(E200*AM203^2/K200+M200*AM203+T200) -> 34.6962639
C204: MA = | E204: =+E202 -> 55 | G204: * | H204: =+E203 -> 1 | J204: ² / | K204: 2 | L204: + | M204: =+M202 -> -110.3791309 | P204: * | Q204: =+H204 -> 1 | S204: + | T204: =+T202 -> 76.06199784 | W204: = | X204: =E204*H204^2/K204+M204*Q204+T204 -> -6.817133034 | AA204: KNm
C205: 3 * L / 4 = | F205: =3*AI12/4 -> 3 | I205: m. ' deki moment miktarı
C206: MC = | E206: =+E204 -> 55 | G206: * | H206: =+F205 -> 3 | J206: ² / | K206: 2 | L206: + | M206: =+M204 -> -110.3791309 | P206: * | Q206: =+H206 -> 3 | S206: + | T206: =+T204 -> 76.06199784 | W206: = | X206: =E206*H206^2/K206+M206*Q206+T206 -> -7.575394773 | AA206: KNm
C207: Cb = 12,5 * Mmax / ( 2,5 * Mmax + 3 * MA + 4 * MB + 3 * MC )
C208: Cb = | E208: 12.5 | G208: * | H208: =ABS(X200) -> 76.06199784 | K208: /( | L208: 2.5 | N208: * | O208: =+H208 -> 76.06199784 | R208: + | S208: 3 | T208: * | U208: =ABS(X204) -> 6.817133034 | X208: + | Y208: 4 | Z208: * | AA208: =ABS(X202) -> 34.6962639 | AD208: + | AE208: 3 | AF208: * | AG208: =ABS(X206) -> 7.575394773 | AJ208: )= | AK208: =E208*H208/(L208*O208+S208*U208+Y208*AA208+AE208*AG208) -> 2.555038749
C209: 5.ci bölgede
C210: m= | D210: =+AT211 -> 5.5 | G210: m. ' deki max moment miktarı
C211: Max = | E211: =+E161 -> 65 | G211: * | H211: =+D210 -> 5.5 | J211: ² / | K211: 2 | L211: + | M211: =+M161 -> -130.7175492 | P211: * | Q211: =+H211 -> 5.5 | S211: + | T211: =+T161 -> 74.54547436 | W211: = | X211: =E211*H211^2/K211+M211*Q211+T211 -> 338.7239538 | AA211: KNm | AM211: 0 | AP211: max = | AR211: =+AR202 -> 74.54547436 | AT211: =INDEX(AM211:AM213,MATCH(MAX(AR211,AR212,AR213),AR211:AR213,0),0) -> 5.5
C212: L / 2 = | E212: =+AR12/2 -> 2.75 | H212: m. ' deki moment miktarı | AM212: =(D11+M11+V11+AE11+AN11-H5*H12-Q4*Q12-Z5*Z12-AI4*AI12)/AR5 -> 2.011039218 | AP212: max = | AR212: =-(E211*AM212^2/K211+M211*AM212+T211) -> 56.89358462
C213: MB = | E213: =+E211 -> 65 | G213: * | H213: =+E212 -> 2.75 | J213: ² / | K213: 2 | L213: + | M213: =+M211 -> -130.7175492 | P213: * | Q213: =+H213 -> 2.75 | S213: + | T213: =+T211 -> 74.54547436 | W213: = | X213: =E213*H213^2/K213+M213*Q213+T213 -> -39.14653592 | AA213: KNm | AM213: =+AR12 -> 5.5 | AP213: max = | AR213: =ABS(E211*AM213^2/K211+M211*AM213+T211) -> 338.7239538
C214: L / 4 = | E214: =+AR12/4 -> 1.375 | H214: m. ' deki moment miktarı | AM214: =+AR12/2 -> 2.75 | AP214: max = | AR214: =-(E211*AM214^2/K211+M211*AM214+T211) -> 39.14653592
C215: MA = | E215: =+E213 -> 65 | G215: * | H215: =+E214 -> 1.375 | J215: ² / | K215: 2 | L215: + | M215: =+M213 -> -130.7175492 | P215: * | Q215: =+H215 -> 1.375 | S215: + | T215: =+T213 -> 74.54547436 | W215: = | X215: =E215*H215^2/K215+M215*Q215+T215 -> -43.74584328 | AA215: KNm
... 565 more rows
